[Event "FIDE Womens Grand Swiss 2023"]
[Site "Douglas/Isle of Man"]
[Date "2023.11.02"]
[Round "8.2"]
[White "Vaishali, Rameshbabu"]
[Black "Milliet, Sophie"]
[Result "1/2-1/2"]
[ECO "C78"]
[WhiteElo "2448"]
[BlackElo "2391"]
[Annotator "ChessBase"]
[PlyCount "139"]
[EventDate "2023.10.04"]
[EventType "swiss"]
[EventCountry "GBR"]
[SourceTitle "playchess.com"]
[Source "ChessBase"]
[SourceQuality "1"]
[TimeControl "40/6000+30:20/3000+30:900+30"]

1. e4 {[%emt 0:10:40]} e5 {[%emt 0:10:04]} 2. Nf3 {[%emt 0:00:08]} Nc6 {[%emt 0:00:03]} 3. Bb5 {[%emt 0:00:04]} a6 {[%emt 0:00:09]} 4. Ba4 {[%emt 0:00:05]} Nf6 {[%emt 0:00:04]} 5. O-O {[%emt 0:00:05]} Bc5 {[%emt 0:00:41]} 6. c3 {[%emt 0:00:20]} b5 {[%emt 0:00:08]} 7. Bb3 {[%emt 0:01:00]} d6 {[%emt 0:00:07]} 8. a4 {[%emt 0:00:18]} b4 {[%emt 0:00:25]} 9. d4 {[%emt 0:05:58]} Ba7 {[%emt 0:00:33]} 10. Be3 {[%emt 0:11:20]} O-O {[%emt 0:00:54]} 11. Nbd2 {[%emt 0:02:54]} h6 {[%emt 0:12:46]} 12. a5 {[%emt 0:04:11]} Ng4 {[%emt 0:12:48]} 13. h3 {[%emt 0:20:41]} Nxe3 {[%emt 0:01:11]} 14. fxe3 {[%emt 0:00:03]} Ne7 {[%emt 0:11:52]} 15. Nh4 {[%emt 0:05:01]} d5 {[%emt 0:10:22]} 16. exd5 {[%emt 0:08:44]} Nxd5 {[%emt 0:00:03]} 17. Ng6 {[%emt 0:05:16]} Nxe3 {[%emt 0:04:04]} 18. Rxf7 {[%emt 0:04:37]} Rxf7 {[%emt 0:00:24]} 19. Qf3 {[%emt 0:00:23]} Qf6 {[%emt 0:23:34]} 20. Nxe5 {[%emt 0:23:20]} Qxf3 {[%emt 0:00:06]} 21. Ndxf3 {[%emt 0:00:04]} bxc3 {[%emt 0:00:53]} 22. bxc3 {[%emt 0:00:11]} c5 {[%emt 0:00:13]} 23. Bxf7+ {[%emt 0:00:51]} Kf8 {[%emt 0:00:30]} 24. Bb3 {[%emt 0:02:36]} Rb8 {[%emt 0:09:08]} 25. Ng6+ {[%emt 0:01:04]} Ke8 {[%emt 0:00:02]} 26. Ba4+ {[%emt 0:00:56]} Bd7 {[%emt 0:00:22]} 27. Re1 {[%emt 0:01:37]} cxd4 {[%emt 0:01:02]} 28. cxd4 {[%emt 0:00:04]} Bxa4 {[%emt 0:01:20]} 29. Rxe3+ {[%emt 0:00:02]} Kd8 {[%emt 0:01:12]} 30. Re7 {[%emt 0:00:53]} Rb1+ {[%emt 0:00:10]} 31. Kf2 {[%emt 0:00:28]} Rb2+ {[%emt 0:00:42]} 32. Ke3 {[%emt 0:01:10]} Bb8 {[%emt 0:09:20]} 33. Rxg7 {[%emt 0:00:45]} Rxg2 {[%emt 0:00:11]} 34. Rb7 {[%emt 0:01:00]} Kc8 {[%emt 0:01:36]} 35. Rb6 {[%emt 0:00:22]} Bc7 {[%emt 0:00:14]} 36. Rf6 {[%emt 0:00:44]} Bd8 {[%emt 0:00:25]} 37. Rxa6 {[%emt 0:00:24]} Kb7 {[%emt 0:00:22]} 38. Nf4 {[%emt 0:00:36]} Kxa6 {[%emt 0:00:58]} 39. Nxg2 {[%emt 0:00:02]} Kxa5 {[%emt 0:00:22]} 40. Ne5 {[%emt 0:00:51]} Bg5+ {[%emt 0:00:24]} 41. Ke4 {[%emt 0:22:09]} Bc2+ {[%emt 0:25:52]} 42. Kf3 {[%emt 0:07:17]} Bd1+ {[%emt 0:00:26]} 43. Ke4 {[%emt 0:00:02]} Bc2+ {[%emt 0:00:07]} 44. Kf3 {[%emt 0:00:04]} Bd1+ {[%emt 0:00:04]} 45. Kg3 {[%emt 0:00:22]} Kb4 {[%emt 0:02:14]} 46. Nf4 {[%emt 0:07:13]} Kc3 {[%emt 0:08:08]} 47. Ne6 {[%emt 0:04:32]} Bb3 {[%emt 0:07:23]} 48. Nxg5 {[%emt 0:01:03]} hxg5 {[%emt 0:00:08]} 49. Nf3 {[%emt 0:00:29]} Be6 {[%emt 0:04:18]} 50. d5 {[%emt 0:00:52]} Bxd5 {[%emt 0:00:07]} 51. Nxg5 {[%emt 0:00:03]} Kd4 {[%emt 0:00:27]} 52. Kf4 {[%emt 0:00:02]} Bb3 {[%emt 0:01:45]} 53. h4 {[%emt 0:02:41]} Bd1 {[%emt 0:01:10]} 54. Ne4 {[%emt 0:01:14]} Be2 {[%emt 0:01:32]} 55. Nf6 {[%emt 0:02:17]} Kc5 {[%emt 0:01:08]} 56. Ne4+ {[%emt 0:04:38]} Kd4 {[%emt 0:00:03]} 57. Ng3 {[%emt 0:00:15]} Bd1 {[%emt 0:00:09]} 58. Nf5+ {[%emt 0:00:13]} Kc5 {[%emt 0:00:09]} 59. Kg5 {[%emt 0:01:22]} Be2 {[%emt 0:00:41]} 60. Ng3 {[%emt 0:00:29]} Bf3 {[%emt 0:01:20]} 61. Kf4 {[%emt 0:15:33]} Bd1 {[%emt 0:15:04]} 62. Ne4+ {[%emt 0:00:28]} Kc6 {[%emt 0:02:17]} 63. Nf2 {[%emt 0:01:58]} Be2 {[%emt 0:00:15]} 64. Ng4 {[%emt 0:00:42]} Bxg4 {[%emt 0:00:35]} 65. Kxg4 {[%emt 0:00:04]} Kd6 {[%emt 0:00:09]} 66. Kf5 {[%emt 0:00:04]} Ke7 {[%emt 0:00:04]} 67. Kg6 {[%emt 0:00:03]} Kf8 {[%emt 0:00:03]} 68. h5 {[%emt 0:00:03]} Kg8 {[%emt 0:00:06]} 69. h6 {[%emt 0:00:03]} Kh8 {[%emt 0:00:07]} 70. h7 {[%emt 0:00:02]} 1/2-1/2

[Event "FIDE Womens Grand Swiss 2023"]
[Site "Douglas/Isle of Man"]
[Date "2023.11.02"]
[Round "8.3"]
[White "Tan, Zhongyi"]
[Black "Goryachkina, Aleksandra"]
[Result "1-0"]
[ECO "C67"]
[WhiteElo "2517"]
[BlackElo "2558"]
[Annotator "ChessBase"]
[PlyCount "109"]
[EventDate "2023.10.04"]
[EventType "swiss"]
[EventCountry "GBR"]
[SourceTitle "playchess.com"]
[Source "ChessBase"]
[SourceQuality "1"]
[TimeControl "40/6000+30:20/3000+30:900+30"]

1. e4 {[%emt 0:10:08]} e5 {[%emt 0:10:13]} 2. Nf3 {[%emt 0:00:07]} Nc6 {[%emt 0:00:16]} 3. Bb5 {[%emt 0:00:08]} Nf6 {[%emt 0:00:23]} 4. O-O {[%emt 0:00:09]} Nxe4 {[%emt 0:00:21]} 5. Re1 {[%emt 0:00:07]} Nd6 {[%emt 0:00:23]} 6. a4 {[%emt 0:00:11]} Be7 {[%emt 0:03:17]} 7. Nc3 {[%emt 0:00:09]} a6 {[%emt 0:02:05]} 8. Bf1 {[%emt 0:00:25]} e4 {[%emt 0:00:41]} 9. Nxe4 {[%emt 0:00:15]} Nxe4 {[%emt 0:00:06]} 10. Rxe4 {[%emt 0:00:03]} d5 {[%emt 0:00:18]} 11. Re1 {[%emt 0:00:06]} Bg4 {[%emt 0:02:23]} 12. h3 {[%emt 0:00:07]} Bh5 {[%emt 0:01:42]} 13. c3 {[%emt 0:00:07]} d4 {[%emt 0:08:37]} 14. b4 {[%emt 0:01:23]} O-O {[%emt 0:02:43]} 15. g4 {[%emt 0:05:14]} Bg6 {[%emt 0:00:13]} 16. Bb2 {[%emt 0:00:06]} dxc3 {[%emt 0:05:53]} 17. dxc3 {[%emt 0:00:14]} Qxd1 {[%emt 0:01:02]} 18. Raxd1 {[%emt 0:02:14]} Bd6 {[%emt 0:09:21]} 19. b5 {[%emt 0:18:38]} axb5 {[%emt 0:06:04]} 20. axb5 {[%emt 0:00:06]} Na5 {[%emt 0:02:33]} 21. c4 {[%emt 0:15:13]} Rfe8 {[%emt 0:07:24]} 22. Ne5 {[%emt 0:10:33]} f6 {[%emt 0:13:41]} 23. Nxg6 {[%emt 0:00:20]} Rxe1 {[%emt 0:00:42]} 24. Rxe1 {[%emt 0:00:10]} hxg6 {[%emt 0:00:05]} 25. Bg2 {[%emt 0:08:48]} Rd8 {[%emt 0:14:35]} 26. Bc3 {[%emt 0:02:53]} b6 {[%emt 0:00:13]} 27. Bd5+ {[%emt 0:05:52]} Kf8 {[%emt 0:00:39]} 28. g5 {[%emt 0:00:37]} Re8 {[%emt 0:06:12]} 29. Rxe8+ {[%emt 0:00:42]} Kxe8 {[%emt 0:00:01]} 30. gxf6 {[%emt 0:00:07]} gxf6 {[%emt 0:00:03]} 31. Bxf6 {[%emt 0:00:10]} Nb3 {[%emt 0:00:12]} 32. Kg2 {[%emt 0:00:34]} Nc5 {[%emt 0:00:16]} 33. Kf3 {[%emt 0:02:25]} Nd7 {[%emt 0:01:22]} 34. Bh4 {[%emt 0:00:58]} Kf8 {[%emt 0:01:42]} 35. Be6 {[%emt 0:05:31]} Nc5 {[%emt 0:01:09]} 36. Bg4 {[%emt 0:00:15]} Kf7 {[%emt 0:05:08]} 37. Ke3 {[%emt 0:00:28]} Be5 {[%emt 0:03:06]} 38. f3 {[%emt 0:07:08]} Nb7 {[%emt 0:00:52]} 39. Ke4 {[%emt 0:01:35]} Bh2 {[%emt 0:00:56]} 40. Kd5 {[%emt 0:00:58]} Bf4 {[%emt 0:00:29]} 41. Be6+ {[%emt 0:51:23]} Ke8 {[%emt 0:52:31]} 42. Bf6 {[%emt 0:02:36]} Be3 {[%emt 0:00:00]} 43. Be5 {[%emt 0:00:00]} Nd6 {[%emt 0:00:00]} 44. Kc6 {[%emt 0:00:00]} Ke7 {[%emt 0:00:00]} 45. Bd5 {[%emt 0:00:00]} Ne8 {[%emt 0:00:00]} 46. f4 {[%emt 0:00:00]} g5 {[%emt 0:00:00]} 47. fxg5 {[%emt 0:00:00]} Bxg5 {[%emt 0:00:00]} 48. Bg3 {[%emt 0:00:00]} Kd8 {[%emt 0:00:00]} 49. Bf7 {[%emt 0:00:00]} Nd6 {[%emt 0:00:00]} 50. Bxd6 {[%emt 0:00:00]} cxd6 {[%emt 0:00:00]} 51. Kxb6 {[%emt 0:00:00]} Kd7 {[%emt 0:00:00]} 52. Bd5 {[%emt 0:00:00]} Bh4 {[%emt 0:00:00]} 53. Kb7 {[%emt 0:00:00]} Bg3 {[%emt 0:00:00]} 54. b6 {[%emt 0:00:00]} Bf2 {[%emt 0:00:00]} 55. h4 {[%emt 0:00:00]} 1-0

[Event "FIDE Womens Grand Swiss 2023"]
[Site "Douglas/Isle of Man"]
[Date "2023.11.02"]
[Round "8.4"]
[White "Garifullina, Leya"]
[Black "Shuvalova, Polina"]
[Result "1-0"]
[ECO "C77"]
[WhiteElo "2402"]
[BlackElo "2506"]
[Annotator "ChessBase"]
[PlyCount "99"]
[EventDate "2023.10.04"]
[EventType "swiss"]
[EventCountry "GBR"]
[SourceTitle "playchess.com"]
[Source "ChessBase"]
[SourceQuality "1"]
[TimeControl "40/6000+30:20/3000+30:900+30"]

1. e4 {[%emt 0:10:12]} e5 {[%emt 0:10:03]} 2. Nf3 {[%emt 0:00:11]} Nc6 {[%emt 0:00:03]} 3. Bb5 {[%emt 0:00:09]} a6 {[%emt 0:00:03]} 4. Ba4 {[%emt 0:00:06]} Nf6 {[%emt 0:00:03]} 5. O-O {[%emt 0:00:17]} Be7 {[%emt 0:00:05]} 6. d3 {[%emt 0:00:12]} b5 {[%emt 0:00:09]} 7. Bb3 {[%emt 0:00:07]} d6 {[%emt 0:00:02]} 8. a3 {[%emt 0:00:28]} O-O {[%emt 0:00:16]} 9. Nc3 {[%emt 0:00:06]} Rb8 {[%emt 0:00:11]} 10. h3 {[%emt 0:01:42]} h6 {[%emt 0:00:06]} 11. Nd5 {[%emt 0:02:43]} Nxd5 {[%emt 0:00:21]} 12. Bxd5 {[%emt 0:02:33]} Qe8 {[%emt 0:00:09]} 13. Be3 {[%emt 0:12:33]} Bd8 {[%emt 0:03:39]} 14. b4 {[%emt 0:02:43]} Bd7 {[%emt 0:09:07]} 15. Re1 {[%emt 0:06:07]} Ne7 {[%emt 0:09:10]} 16. Bb3 {[%emt 0:06:53]} Ng6 {[%emt 0:01:17]} 17. d4 {[%emt 0:03:35]} exd4 {[%emt 0:08:09]} 18. Bxd4 {[%emt 0:02:21]} Be6 {[%emt 0:02:26]} 19. e5 {[%emt 0:07:03]} Bxb3 {[%emt 0:08:35]} 20. cxb3 {[%emt 0:05:15]} Qd7 {[%emt 0:00:11]} 21. Qc2 {[%emt 0:07:43]} Re8 {[%emt 0:00:30]} 22. Rac1 {[%emt 0:07:27]} Bg5 {[%emt 0:07:42]} 23. Rcd1 {[%emt 0:06:32]} Rbd8 {[%emt 0:03:36]} 24. Bb2 {[%emt 0:01:31]} Qc8 {[%emt 0:09:03]} 25. exd6 {[%emt 0:01:06]} cxd6 {[%emt 0:05:33]} 26. Qxc8 {[%emt 0:03:16]} Rxe1+ {[%emt 0:02:43]} 27. Nxe1 {[%emt 0:00:11]} Rxc8 {[%emt 0:00:02]} 28. Rxd6 {[%emt 0:00:37]} Bc1 {[%emt 0:00:34]} 29. Bxc1 {[%emt 0:02:17]} Rxc1 {[%emt 0:00:04]} 30. Kf1 {[%emt 0:00:06]} Rb1 {[%emt 0:07:25]} 31. Rxa6 {[%emt 0:04:10]} Nf4 {[%emt 0:02:23]} 32. Ra8+ {[%emt 0:02:59]} Kh7 {[%emt 0:00:04]} 33. Re8 {[%emt 0:03:01]} Rxb3 {[%emt 0:03:45]} 34. Re3 {[%emt 0:00:22]} Rb2 {[%emt 0:00:20]} 35. h4 {[%emt 0:01:24]} Ra2 {[%emt 0:02:56]} 36. g3 {[%emt 0:01:51]} Nd5 {[%emt 0:00:43]} 37. Rd3 {[%emt 0:00:59]} Nb6 {[%emt 0:01:20]} 38. Rc3 {[%emt 0:03:31]} Na4 {[%emt 0:11:59]} 39. Rc7 {[%emt 0:00:44]} Rxa3 {[%emt 0:02:30]} 40. Rxf7 {[%emt 0:00:08]} Rb3 {[%emt 0:00:15]} 41. Nc2 {[%emt 0:52:24]} Kg6 {[%emt 0:28:40]} 42. Rb7 {[%emt 0:00:00]} Rb2 {[%emt 0:02:05]} 43. Ne3 {[%emt 0:00:00]} Nc3 {[%emt 0:05:51]} 44. h5+ {[%emt 0:00:00]} Kxh5 {[%emt 0:05:11]} 45. Rxg7 {[%emt 0:00:00]} Ne4 {[%emt 0:00:41]} 46. Nd5 {[%emt 0:00:00]} Rxf2+ {[%emt 0:01:54]} 47. Kg1 {[%emt 0:00:00]} Nf6 {[%emt 0:01:50]} 48. Nf4+ {[%emt 0:00:00]} Rxf4 {[%emt 0:00:04]} 49. gxf4 {[%emt 0:00:00]} Nd5 {[%emt 0:00:06]} 50. f5 {[%emt 0:00:00]} 1-0

[Event "FIDE Womens Grand Swiss 2023"]
[Site "Douglas/Isle of Man"]
[Date "2023.11.02"]
[Round "8.5"]
[White "Tsolakidou, Stavroula"]
[Black "Assaubayeva, Bibisara"]
[Result "1/2-1/2"]
[ECO "C72"]
[WhiteElo "2385"]
[BlackElo "2469"]
[Annotator "ChessBase"]
[PlyCount "49"]
[EventDate "2023.10.04"]
[EventType "swiss"]
[EventCountry "GBR"]
[SourceTitle "playchess.com"]
[Source "ChessBase"]
[SourceQuality "1"]
[TimeControl "40/6000+30:20/3000+30:900+30"]

1. e4 {[%emt 0:10:04]} e5 {[%emt 0:12:29]} 2. Nf3 {[%emt 0:00:13]} Nc6 {[%emt 0:00:06]} 3. Bb5 {[%emt 0:00:11]} a6 {[%emt 0:00:25]} 4. Ba4 {[%emt 0:00:09]} d6 {[%emt 0:01:52]} 5. O-O {[%emt 0:00:38]} Bd7 {[%emt 0:01:09]} 6. c4 {[%emt 0:00:38]} g6 {[%emt 0:06:42]} 7. d4 {[%emt 0:01:29]} Bg7 {[%emt 0:01:10]} 8. dxe5 {[%emt 0:01:52]} dxe5 {[%emt 0:07:48]} 9. Bxc6 {[%emt 0:00:43]} Bxc6 {[%emt 0:04:12]} 10. Qc2 {[%emt 0:00:25]} Nf6 {[%emt 0:05:22]} 11. Nc3 {[%emt 0:02:29]} Nd7 {[%emt 0:04:07]} 12. Rd1 {[%emt 0:02:00]} O-O {[%emt 0:02:30]} 13. b4 {[%emt 0:08:38]} b6 {[%emt 0:03:51]} 14. b5 {[%emt 0:03:58]} Bb7 {[%emt 0:06:32]} 15. Rb1 {[%emt 0:21:25]} axb5 {[%emt 0:09:23]} 16. cxb5 {[%emt 0:03:45]} Qc8 {[%emt 0:03:02]} 17. Nd5 {[%emt 0:01:42]} Bxd5 {[%emt 0:00:37]} 18. Rxd5 {[%emt 0:00:05]} Re8 {[%emt 0:02:54]} 19. Be3 {[%emt 0:02:35]} Bf8 {[%emt 0:10:01]} 20. h3 {[%emt 0:18:52]} Bd6 {[%emt 0:03:22]} 21. Bg5 {[%emt 0:02:00]} Nc5 {[%emt 0:04:42]} 22. Bf6 {[%emt 0:03:36]} Nd7 {[%emt 0:00:22]} 23. Bg5 {[%emt 0:00:05]} Nc5 {[%emt 0:00:05]} 24. Bf6 {[%emt 0:08:14]} Nd7 {[%emt 0:00:17]} 25. Bg5 {[%emt 0:00:15]} 1/2-1/2

[Event "FIDE Womens Grand Swiss 2023"]
[Site "Douglas/Isle of Man"]
[Date "2023.11.02"]
[Round "8.6"]
[White "Ushenina, Anna"]
[Black "Cori T., Deysi"]
[Result "1/2-1/2"]
[ECO "A42"]
[WhiteElo "2434"]
[BlackElo "2367"]
[Annotator "ChessBase"]
[PlyCount "21"]
[EventDate "2023.10.04"]
[EventType "swiss"]
[EventCountry "GBR"]
[SourceTitle "playchess.com"]
[Source "ChessBase"]
[SourceQuality "1"]
[TimeControl "40/6000+30:20/3000+30:900+30"]

1. d4 {[%emt 0:10:06]} d6 {[%emt 0:10:36]} 2. Nf3 {[%emt 0:00:31]} g6 {[%emt 0:00:43]} 3. c4 {[%emt 0:07:22]} Bg7 {[%emt 0:00:36]} 4. Nc3 {[%emt 0:01:38]} Bg4 {[%emt 0:00:34]} 5. e4 {[%emt 0:16:23]} Nc6 {[%emt 0:13:45]} 6. d5 {[%emt 0:10:57]} Nd4 {[%emt 0:00:07]} 7. Qa4+ {[%emt 0:05:36]} Bd7 {[%emt 0:03:22]} 8. Qd1 {[%emt 0:00:04]} Bg4 {[%emt 0:00:04]} 9. Qa4+ {[%emt 0:00:56]} Bd7 {[%emt 0:04:38]} 10. Qd1 {[%emt 0:00:07]} Bg4 {[%emt 0:01:16]} 11. Qa4+ {[%emt 0:01:31]} 1/2-1/2

[Event "FIDE Womens Grand Swiss 2023"]
[Site "Douglas/Isle of Man"]
[Date "2023.11.02"]
[Round "8.7"]
[White "Munguntuul, Batkhuyag"]
[Black "Bulmaga, Irina"]
[Result "1-0"]
[ECO "C77"]
[WhiteElo "2366"]
[BlackElo "2423"]
[Annotator "ChessBase"]
[PlyCount "87"]
[EventDate "2023.10.04"]
[EventType "swiss"]
[EventCountry "GBR"]
[SourceTitle "playchess.com"]
[Source "ChessBase"]
[SourceQuality "1"]
[TimeControl "40/6000+30:20/3000+30:900+30"]

1. e4 {[%emt 0:10:00]} e5 {[%emt 0:10:13]} 2. Nf3 {[%emt 0:00:04]} Nc6 {[%emt 0:00:08]} 3. Bb5 {[%emt 0:00:03]} a6 {[%emt 0:00:09]} 4. Ba4 {[%emt 0:00:02]} Nf6 {[%emt 0:00:14]} 5. d3 {[%emt 0:00:04]} d6 {[%emt 0:00:14]} 6. c3 {[%emt 0:00:33]} g6 {[%emt 0:00:14]} 7. O-O {[%emt 0:00:30]} Bg7 {[%emt 0:00:09]} 8. Re1 {[%emt 0:01:22]} O-O {[%emt 0:00:26]} 9. Nbd2 {[%emt 0:00:07]} Re8 {[%emt 0:00:41]} 10. Nf1 {[%emt 0:02:48]} h6 {[%emt 0:01:30]} 11. Ng3 {[%emt 0:09:54]} b5 {[%emt 0:10:37]} 12. Bc2 {[%emt 0:05:00]} d5 {[%emt 0:00:35]} 13. d4 {[%emt 0:23:38]} exd4 {[%emt 0:15:50]} 14. e5 {[%emt 0:03:20]} d3 {[%emt 0:15:48]} 15. exf6 {[%emt 0:15:33]} dxc2 {[%emt 0:01:00]} 16. Rxe8+ {[%emt 0:00:14]} Qxe8 {[%emt 0:00:11]} 17. Qxc2 {[%emt 0:10:44]} Bxf6 {[%emt 0:00:51]} 18. Bxh6 {[%emt 0:00:03]} Bg4 {[%emt 0:07:07]} 19. Qd3 {[%emt 0:01:06]} Qd7 {[%emt 0:08:09]} 20. h3 {[%emt 0:00:34]} Be6 {[%emt 0:01:30]} 21. Re1 {[%emt 0:03:02]} b4 {[%emt 0:04:06]} 22. Ng5 {[%emt 0:04:02]} Bf5 {[%emt 0:09:28]} 23. Nxf5 {[%emt 0:00:39]} Qxf5 {[%emt 0:00:31]} 24. Qxa6 {[%emt 0:00:16]} Rd8 {[%emt 0:08:10]} 25. Qxc6 {[%emt 0:00:21]} Bxg5 {[%emt 0:00:09]} 26. Bxg5 {[%emt 0:03:53]} Qxg5 {[%emt 0:00:02]} 27. Qxc7 {[%emt 0:00:36]} d4 {[%emt 0:07:29]} 28. cxd4 {[%emt 0:02:19]} Rxd4 {[%emt 0:00:35]} 29. Qb6 {[%emt 0:03:43]} Qd2 {[%emt 0:02:42]} 30. Re8+ {[%emt 0:01:22]} Kg7 {[%emt 0:01:01]} 31. Qc5 {[%emt 0:02:04]} Rd6 {[%emt 0:01:15]} 32. Qe5+ {[%emt 0:00:35]} Rf6 {[%emt 0:01:24]} 33. Rg8+ {[%emt 0:00:32]} Kxg8 {[%emt 0:00:09]} 34. Qxf6 {[%emt 0:00:02]} Qc1+ {[%emt 0:02:06]} 35. Kh2 {[%emt 0:00:06]} Qc7+ {[%emt 0:00:08]} 36. g3 {[%emt 0:01:21]} Qa7 {[%emt 0:01:03]} 37. Kg1 {[%emt 0:01:12]} Qc5 {[%emt 0:00:42]} 38. Qf4 {[%emt 0:00:24]} Kg7 {[%emt 0:01:00]} 39. Qe3 {[%emt 0:00:50]} Qc4 {[%emt 0:01:06]} 40. a4 {[%emt 0:01:14]} b3 {[%emt 0:01:11]} 41. a5 {[%emt 0:51:06]} f5 {[%emt 0:27:04]} 42. Kh2 {[%emt 0:00:00]} Kf6 {[%emt 0:06:31]} 43. Qb6+ {[%emt 0:00:00]} Kg5 {[%emt 0:01:41]} 44. Qd8+ {[%emt 0:00:00]} 1-0

[Event "FIDE Womens Grand Swiss 2023"]
[Site "Douglas/Isle of Man"]
[Date "2023.11.02"]
[Round "8.8"]
[White "Narva, Mai"]
[Black "Muzychuk, Mariya"]
[Result "1-0"]
[ECO "B33"]
[WhiteElo "2399"]
[BlackElo "2519"]
[Annotator "ChessBase"]
[PlyCount "93"]
[EventDate "2023.10.04"]
[EventType "swiss"]
[EventCountry "GBR"]
[SourceTitle "playchess.com"]
[Source "ChessBase"]
[SourceQuality "1"]
[TimeControl "40/6000+30:20/3000+30:900+30"]

1. e4 {[%emt 0:10:04]} c5 {[%emt 0:10:04]} 2. Nf3 {[%emt 0:00:08]} Nc6 {[%emt 0:00:03]} 3. d4 {[%emt 0:00:16]} cxd4 {[%emt 0:00:05]} 4. Nxd4 {[%emt 0:00:05]} Nf6 {[%emt 0:00:03]} 5. Nc3 {[%emt 0:00:10]} e5 {[%emt 0:00:06]} 6. Ndb5 {[%emt 0:00:08]} d6 {[%emt 0:00:04]} 7. Bg5 {[%emt 0:00:21]} a6 {[%emt 0:00:05]} 8. Na3 {[%emt 0:00:08]} b5 {[%emt 0:00:03]} 9. Nd5 {[%emt 0:00:21]} Be7 {[%emt 0:00:07]} 10. Bxf6 {[%emt 0:00:26]} Bxf6 {[%emt 0:00:05]} 11. c3 {[%emt 0:00:20]} Rb8 {[%emt 0:01:00]} 12. Nc2 {[%emt 0:00:18]} Bg5 {[%emt 0:00:05]} 13. g3 {[%emt 0:00:23]} O-O {[%emt 0:02:47]} 14. h4 {[%emt 0:00:15]} Bh6 {[%emt 0:04:51]} 15. Bh3 {[%emt 0:00:25]} Be6 {[%emt 0:04:20]} 16. Bxe6 {[%emt 0:00:30]} fxe6 {[%emt 0:00:04]} 17. O-O {[%emt 0:00:18]} Rf7 {[%emt 0:17:58]} 18. Nde3 {[%emt 0:00:31]} Bxe3 {[%emt 0:00:06]} 19. Nxe3 {[%emt 0:00:07]} Na5 {[%emt 0:00:31]} 20. Qe2 {[%emt 0:24:21]} Qc7 {[%emt 0:01:08]} 21. h5 {[%emt 0:08:50]} Nc4 {[%emt 0:08:03]} 22. Ng4 {[%emt 0:05:08]} h6 {[%emt 0:04:30]} 23. Rfd1 {[%emt 0:05:13]} Rd7 {[%emt 0:15:30]} 24. Rd3 {[%emt 0:11:27]} Rbd8 {[%emt 0:00:26]} 25. Rad1 {[%emt 0:12:12]} Kh7 {[%emt 0:04:07]} 26. b3 {[%emt 0:03:18]} Na5 {[%emt 0:00:37]} 27. Ne3 {[%emt 0:02:44]} Rf7 {[%emt 0:05:01]} 28. R1d2 {[%emt 0:02:59]} Nb7 {[%emt 0:01:05]} 29. b4 {[%emt 0:01:11]} Rdf8 {[%emt 0:00:20]} 30. Qg4 {[%emt 0:03:27]} Rf6 {[%emt 0:03:34]} 31. Kg2 {[%emt 0:07:09]} Qc6 {[%emt 0:01:47]} 32. c4 {[%emt 0:07:20]} g6 {[%emt 0:15:38]} 33. cxb5 {[%emt 0:01:17]} axb5 {[%emt 0:00:10]} 34. Rc2 {[%emt 0:04:49]} gxh5 {[%emt 0:00:23]} 35. Qh4 {[%emt 0:00:09]} Qe8 {[%emt 0:08:41]} 36. Rc7+ {[%emt 0:00:36]} R6f7 {[%emt 0:01:00]} 37. Rdc3 {[%emt 0:00:40]} Kg8 {[%emt 0:00:15]} 38. Kg1 {[%emt 0:00:50]} Rd7 {[%emt 0:03:45]} 39. Rxd7 {[%emt 0:00:26]} Qxd7 {[%emt 0:00:03]} 40. Qxh5 {[%emt 0:00:20]} Qg7 {[%emt 0:01:25]} 41. Ng4 {[%emt 0:22:20]} Kh8 {[%emt 0:23:00]} 42. Nxh6 {[%emt 0:01:25]} Qh7 {[%emt 0:00:19]} 43. Rc7 {[%emt 0:02:06]} Qxc7 {[%emt 0:01:30]} 44. Nf7+ {[%emt 0:00:14]} Kg7 {[%emt 0:00:07]} 45. Qh6+ {[%emt 0:00:12]} Kxf7 {[%emt 0:00:12]} 46. Qh7+ {[%emt 0:00:09]} Kf6 {[%emt 0:00:02]} 47. Qxc7 {[%emt 0:00:08]} 1-0